[Event "Titled Tuesday Blitz May 25 2021"]
[White "Kosteniuk, Alexandra"]
[Black "Gabdushev, Ruslan"]
[WhiteFideId "4128125"]
[BlackFideId "4137833"]
[WhiteElo "2521"]
[BlackElo "2312"]
[Result "0-1"]
[Round "10"]
[TimeControl "180+1"]
[Date "2021.05.25"]
[WhiteClock "0:00:01"]
[BlackClock "0:00:03"]

1. c4 {[%clk 0:03:00]}  Nc6 {[%clk 0:02:59]} 2. Nc3 {[%clk 0:02:59]}  e5 {[%clk 0:02:58]} 3. g3 {[%clk 0:02:59]}  h5 {[%clk 0:02:58]} 4. h4 {[%clk 0:02:57]}  Bc5 {[%clk 0:02:56]} 5. Bg2 {[%clk 0:02:56]}  d6 {[%clk 0:02:56]} 6. e3 {[%clk 0:02:56]}  Bg4 {[%clk 0:02:54]} 7. Qb3 {[%clk 0:02:42]}  Rb8 {[%clk 0:02:41]} 8. a3 {[%clk 0:02:41]}  Be6 {[%clk 0:02:28]} 9. Qa4 {[%clk 0:02:38]}  Bd7 {[%clk 0:02:17]} 10. Qc2 {[%clk 0:02:37]}  a5 {[%clk 0:02:14]} 11. Nd5 {[%clk 0:02:36]}  Nce7 {[%clk 0:02:09]} 12. Ne2 {[%clk 0:02:34]}  c6 {[%clk 0:02:07]} 13. Nxe7 {[%clk 0:02:31]}  Nxe7 {[%clk 0:02:01]} 14. d4 {[%clk 0:02:31]}  Bb6 {[%clk 0:01:54]} 15. O-O {[%clk 0:02:27]}  Qc8 {[%clk 0:01:38]} 16. b4 {[%clk 0:02:23]}  Bh3 {[%clk 0:01:36]} 17. Bb2 {[%clk 0:02:22]}  Bxg2 {[%clk 0:01:34]} 18. Kxg2 {[%clk 0:02:22]}  Bc7 {[%clk 0:01:25]} 19. c5 {[%clk 0:02:11]}  exd4 {[%clk 0:01:17]} 20. cxd6 {[%clk 0:02:07]}  Bxd6 {[%clk 0:01:17]} 21. Nxd4 {[%clk 0:02:04]}  axb4 {[%clk 0:01:12]} 22. axb4 {[%clk 0:02:04]}  O-O {[%clk 0:01:09]} 23. Ra5 {[%clk 0:01:51]}  Nd5 {[%clk 0:00:48]} 24. Nf5 {[%clk 0:01:44]}  Bxb4 {[%clk 0:00:45]} 25. Rxd5 {[%clk 0:01:43]}  cxd5 {[%clk 0:00:45]} 26. Qd3 {[%clk 0:01:42]}  Qc4 {[%clk 0:00:42]} 27. Rd1 {[%clk 0:01:31]}  Qe4+ {[%clk 0:00:36]} 28. f3 {[%clk 0:01:28]}  Qxd3 {[%clk 0:00:35]} 29. Rxd3 {[%clk 0:01:29]}  g6 {[%clk 0:00:34]} 30. Nd4 {[%clk 0:01:25]}  Rfc8 {[%clk 0:00:32]} 31. g4 {[%clk 0:01:22]}  hxg4 {[%clk 0:00:28]} 32. fxg4 {[%clk 0:01:22]}  Be7 {[%clk 0:00:27]} 33. h5 {[%clk 0:01:09]}  Bf6 {[%clk 0:00:26]} 34. Kf3 {[%clk 0:01:07]}  b5 {[%clk 0:00:23]} 35. Rb3 {[%clk 0:01:00]}  b4 {[%clk 0:00:22]} 36. Kf4 {[%clk 0:01:00]}  Rc4 {[%clk 0:00:19]} 37. h6 {[%clk 0:00:52]}  Kh7 {[%clk 0:00:18]} 38. g5 {[%clk 0:00:52]}  Be7 {[%clk 0:00:18]} 39. Kg4 {[%clk 0:00:49]}  Bd6 {[%clk 0:00:16]} 40. Ba1 {[%clk 0:00:44]}  Be5 {[%clk 0:00:15]} 41. Rb1 {[%clk 0:00:40]}  f5+ {[%clk 0:00:12]} 42. Kf3 {[%clk 0:00:34]}  b3 {[%clk 0:00:12]} 43. Bb2 {[%clk 0:00:31]}  Bxd4 {[%clk 0:00:09]} 44. Bxd4 {[%clk 0:00:25]}  b2 {[%clk 0:00:10]} 45. Rxb2 {[%clk 0:00:23]}  Rxb2 {[%clk 0:00:10]} 46. Bxb2 {[%clk 0:00:24]}  Rg4 {[%clk 0:00:10]} 47. Bf6 {[%clk 0:00:24]}  Ra4 {[%clk 0:00:09]} 48. Kg3 {[%clk 0:00:21]}  Rg4+ {[%clk 0:00:09]} 49. Kf3 {[%clk 0:00:22]}  Re4 {[%clk 0:00:09]} 50. Bd4 {[%clk 0:00:18]}  Rh4 {[%clk 0:00:08]} 51. Bf6 {[%clk 0:00:17]}  Rg4 {[%clk 0:00:08]} 52. Be7 {[%clk 0:00:13]}  Re4 {[%clk 0:00:07]} 53. Bf6 {[%clk 0:00:13]}  Rh4 {[%clk 0:00:07]} 54. Be7 {[%clk 0:00:12]}  d4 {[%clk 0:00:06]} 55. exd4 {[%clk 0:00:11]}  Rxd4 {[%clk 0:00:05]} 56. Bf6 {[%clk 0:00:11]}  Ra4 {[%clk 0:00:04]} 57. Kg3 {[%clk 0:00:10]}  Rg4+ {[%clk 0:00:04]} 58. Kf3 {[%clk 0:00:11]}  Rh4 {[%clk 0:00:04]} 59. Kg3 {[%clk 0:00:11]}  Rh5 {[%clk 0:00:05]} 60. Kf4 {[%clk 0:00:11]}  Kg8 {[%clk 0:00:05]} 61. Be5 {[%clk 0:00:08]}  Kf7 {[%clk 0:00:05]} 62. Bc7 {[%clk 0:00:06]}  Ke6 {[%clk 0:00:05]} 63. Bb8 {[%clk 0:00:05]}  Kd5 {[%clk 0:00:06]} 64. Bc7 {[%clk 0:00:06]}  Rh4+ {[%clk 0:00:06]} 65. Kf3 {[%clk 0:00:06]}  Ke6 {[%clk 0:00:05]} 66. Bf4 {[%clk 0:00:05]}  Rh3+ {[%clk 0:00:04]} 67. Kg2 {[%clk 0:00:04]}  Rh5 {[%clk 0:00:05]} 68. Kf3 {[%clk 0:00:04]}  Kd5 {[%clk 0:00:06]} 69. Kg3 {[%clk 0:00:03]}  Ke4 {[%clk 0:00:06]} 70. Bd6 {[%clk 0:00:04]}  Rxg5+ {[%clk 0:00:05]} 71. Kf2 {[%clk 0:00:03]}  Rh5 {[%clk 0:00:05]} 72. Bf8 {[%clk 0:00:04]}  g5 {[%clk 0:00:05]} 73. Kg3 {[%clk 0:00:03]}  g4 {[%clk 0:00:04]} 74. Bg7 {[%clk 0:00:03]}  Ke3 {[%clk 0:00:03]} 75. Bc3 {[%clk 0:00:02]}  Rxh6 {[%clk 0:00:03]} 76. Be5 {[%clk 0:00:01]}  Rh3+ {[%clk 0:00:03]} 77. Kg2 {[%clk 0:00:01]}  Ke4 {[%clk 0:00:03]} 0-1


[Site "https://www.chess.com"]

[Event "Titled Tuesday Blitz May 25 2021"]
[White "Langner, Ladislav"]
[Black "Sergey85Rodchenkov"]
[WhiteFideId "300403"]
[WhiteElo "2346"]
[BlackElo "2508"]
[Result "1/2-1/2"]
[Round "10"]
[TimeControl "180+1"]
[Date "2021.05.25"]
[WhiteClock "0:00:03"]
[BlackClock "0:00:17"]

1. e4 {[%clk 0:03:00]}  c5 {[%clk 0:02:59]} 2. d4 {[%clk 0:03:00]}  cxd4 {[%clk 0:02:59]} 3. c3 {[%clk 0:03:01]}  d3 {[%clk 0:02:59]} 4. Bxd3 {[%clk 0:03:01]}  Nc6 {[%clk 0:02:58]} 5. c4 {[%clk 0:03:01]}  e6 {[%clk 0:02:57]} 6. Nc3 {[%clk 0:03:01]}  Nf6 {[%clk 0:02:56]} 7. Nge2 {[%clk 0:02:56]}  d5 {[%clk 0:02:56]} 8. exd5 {[%clk 0:02:53]}  exd5 {[%clk 0:02:56]} 9. cxd5 {[%clk 0:02:50]}  Nxd5 {[%clk 0:02:55]} 10. Nxd5 {[%clk 0:02:48]}  Qxd5 {[%clk 0:02:55]} 11. O-O {[%clk 0:02:45]}  Be7 {[%clk 0:02:54]} 12. Bf4 {[%clk 0:02:37]}  Bg4 {[%clk 0:02:47]} 13. Qc2 {[%clk 0:02:32]}  Rc8 {[%clk 0:02:37]} 14. Nc3 {[%clk 0:02:24]}  Qh5 {[%clk 0:02:35]} 15. h3 {[%clk 0:02:17]}  Be6 {[%clk 0:02:33]} 16. Be2 {[%clk 0:01:53]}  Qg6 {[%clk 0:02:28]} 17. Bd3 {[%clk 0:01:52]}  Qh5 {[%clk 0:02:24]} 18. Be2 {[%clk 0:01:52]}  Qa5 {[%clk 0:02:15]} 19. Qe4 {[%clk 0:01:18]}  O-O {[%clk 0:02:07]} 20. Bd3 {[%clk 0:01:18]}  g6 {[%clk 0:02:03]} 21. Rfe1 {[%clk 0:01:07]}  Bf6 {[%clk 0:01:55]} 22. Rac1 {[%clk 0:01:01]}  Rfd8 {[%clk 0:01:48]} 23. Bc4 {[%clk 0:00:56]}  Bxc4 {[%clk 0:01:34]} 24. Qxc4 {[%clk 0:00:56]}  Nd4 {[%clk 0:01:30]} 25. Qa4 {[%clk 0:00:42]}  Qxa4 {[%clk 0:01:28]} 26. Nxa4 {[%clk 0:00:42]}  Ne6 {[%clk 0:01:24]} 27. Be3 {[%clk 0:00:36]}  b5 {[%clk 0:01:23]} 28. Nc5 {[%clk 0:00:21]}  Nxc5 {[%clk 0:01:05]} 29. Rxc5 {[%clk 0:00:20]}  Rxc5 {[%clk 0:01:03]} 30. Bxc5 {[%clk 0:00:20]}  a6 {[%clk 0:01:01]} 31. b3 {[%clk 0:00:18]}  h5 {[%clk 0:00:59]} 32. a4 {[%clk 0:00:17]}  Rd3 {[%clk 0:00:58]} 33. Rb1 {[%clk 0:00:15]}  Rc3 {[%clk 0:00:50]} 34. Be3 {[%clk 0:00:15]}  Be5 {[%clk 0:00:44]} 35. Kf1 {[%clk 0:00:15]}  Rc2 {[%clk 0:00:44]} 36. axb5 {[%clk 0:00:14]}  axb5 {[%clk 0:00:44]} 37. Rc1 {[%clk 0:00:12]}  Rxc1+ {[%clk 0:00:40]} 38. Bxc1 {[%clk 0:00:11]}  f5 {[%clk 0:00:40]} 39. Ke2 {[%clk 0:00:11]}  Kf7 {[%clk 0:00:40]} 40. Kd3 {[%clk 0:00:11]}  Ke6 {[%clk 0:00:40]} 41. Be3 {[%clk 0:00:10]}  Kd5 {[%clk 0:00:40]} 42. f3 {[%clk 0:00:09]}  Bd6 {[%clk 0:00:38]} 43. g4 {[%clk 0:00:09]}  fxg4 {[%clk 0:00:37]} 44. fxg4 {[%clk 0:00:08]}  Be5 {[%clk 0:00:36]} 45. gxh5 {[%clk 0:00:08]}  gxh5 {[%clk 0:00:36]} 46. Bd2 {[%clk 0:00:08]}  Bf6 {[%clk 0:00:35]} 47. Bf4 {[%clk 0:00:07]}  Be7 {[%clk 0:00:34]} 48. Bg3 {[%clk 0:00:07]}  Bc5 {[%clk 0:00:34]} 49. Bf4 {[%clk 0:00:07]}  Bb4 {[%clk 0:00:33]} 50. Bg3 {[%clk 0:00:06]}  Be7 {[%clk 0:00:30]} 51. Bf4 {[%clk 0:00:06]}  Kc5 {[%clk 0:00:29]} 52. Kc3 {[%clk 0:00:05]}  Bf6+ {[%clk 0:00:29]} 53. Kd3 {[%clk 0:00:04]}  Kb4 {[%clk 0:00:29]} 54. Kc2 {[%clk 0:00:05]}  Bd4 {[%clk 0:00:28]} 55. Bd2+ {[%clk 0:00:05]}  Kc5 {[%clk 0:00:28]} 56. Kd3 {[%clk 0:00:05]}  Kd5 {[%clk 0:00:29]} 57. Bf4 {[%clk 0:00:05]}  Bc5 {[%clk 0:00:28]} 58. Bg3 {[%clk 0:00:05]}  Bb6 {[%clk 0:00:26]} 59. Bf4 {[%clk 0:00:05]}  Bf2 {[%clk 0:00:24]} 60. Bc7 {[%clk 0:00:05]}  h4 {[%clk 0:00:23]} 61. Bd8 {[%clk 0:00:04]}  Bg3 {[%clk 0:00:23]} 62. Bf6 {[%clk 0:00:03]}  Ke6 {[%clk 0:00:23]} 63. Bc3 {[%clk 0:00:02]}  Kf5 {[%clk 0:00:23]} 64. Ke3 {[%clk 0:00:02]}  Be5 {[%clk 0:00:18]} 65. Bxe5 {[%clk 0:00:01]}  Kxe5 {[%clk 0:00:18]} 66. b4 {[%clk 0:00:01]}  Kf5 {[%clk 0:00:18]} 67. Kf3 {[%clk 0:00:02]}  Ke5 {[%clk 0:00:17]} 68. Ke3 {[%clk 0:00:02]}  Kd5 {[%clk 0:00:17]} 69. Kd3 {[%clk 0:00:02]}  Ke5 {[%clk 0:00:17]} 70. Ke3 {[%clk 0:00:03]} 1/2-1/2


[Site "https://www.chess.com"]

[Event "Titled Tuesday Blitz May 25 2021"]
[White "Maiorov, Nikita"]
[Black "Eynullayev, Atilla"]
[WhiteFideId "13501720"]
[BlackFideId "13413570"]
[WhiteElo "2440"]
[BlackElo "1997"]
[Result "1-0"]
[Round "10"]
[TimeControl "180+1"]
[Date "2021.05.25"]
[WhiteClock "0:00:03"]
[BlackClock "0:00:07"]

1. d4 {[%clk 0:03:00]}  Nf6 {[%clk 0:02:58]} 2. c4 {[%clk 0:03:00]}  e6 {[%clk 0:02:58]} 3. Nf3 {[%clk 0:02:58]}  d5 {[%clk 0:02:58]} 4. Nc3 {[%clk 0:02:57]}  a6 {[%clk 0:02:50]} 5. cxd5 {[%clk 0:02:54]}  exd5 {[%clk 0:02:51]} 6. Qb3 {[%clk 0:02:54]}  Ra7 {[%clk 0:02:36]} 7. Bg5 {[%clk 0:02:53]}  Be6 {[%clk 0:02:36]} 8. Bxf6 {[%clk 0:02:49]}  Qxf6 {[%clk 0:02:37]} 9. e3 {[%clk 0:02:49]}  Qd8 {[%clk 0:02:29]} 10. Bd3 {[%clk 0:02:47]}  c6 {[%clk 0:02:29]} 11. O-O {[%clk 0:02:46]}  Be7 {[%clk 0:02:29]} 12. Qc2 {[%clk 0:02:45]}  Nd7 {[%clk 0:02:26]} 13. a3 {[%clk 0:02:35]}  Nf6 {[%clk 0:02:25]} 14. Ng5 {[%clk 0:02:30]}  Qd7 {[%clk 0:02:11]} 15. f4 {[%clk 0:02:29]}  g6 {[%clk 0:02:01]} 16. f5 {[%clk 0:02:19]}  gxf5 {[%clk 0:01:42]} 17. Bxf5 {[%clk 0:02:14]}  Bxf5 {[%clk 0:01:22]} 18. Rxf5 {[%clk 0:02:12]}  h6 {[%clk 0:01:22]} 19. Nf3 {[%clk 0:02:10]}  Qe6 {[%clk 0:01:10]} 20. Ne5 {[%clk 0:02:09]}  Rg8 {[%clk 0:01:09]} 21. Raf1 {[%clk 0:02:08]}  Rg7 {[%clk 0:01:00]} 22. Qf2 {[%clk 0:02:06]}  Ng4 {[%clk 0:00:29]} 23. Nxg4 {[%clk 0:01:20]}  Rxg4 {[%clk 0:00:30]} 24. Rxf7 {[%clk 0:01:17]}  Kd7 {[%clk 0:00:30]} 25. Na4 {[%clk 0:01:10]}  b6 {[%clk 0:00:20]} 26. Nxb6+ {[%clk 0:01:07]}  Kc7 {[%clk 0:00:20]} 27. Na4 {[%clk 0:01:04]}  Ra8 {[%clk 0:00:20]} 28. Nc5 {[%clk 0:01:03]}  Qd6 {[%clk 0:00:19]} 29. Qf6 {[%clk 0:01:00]}  Qxf6 {[%clk 0:00:19]} 30. R1xf6 {[%clk 0:01:00]}  Re8 {[%clk 0:00:16]} 31. Re6 {[%clk 0:00:57]}  Kd8 {[%clk 0:00:14]} 32. Rxc6 {[%clk 0:00:51]}  Bxc5 {[%clk 0:00:06]} 33. dxc5 {[%clk 0:00:43]}  Rxe3 {[%clk 0:00:07]} 34. Rd6+ {[%clk 0:00:41]}  Ke8 {[%clk 0:00:07]} 35. h3 {[%clk 0:00:36]}  Rg5 {[%clk 0:00:02]} 36. Rf2 {[%clk 0:00:34]}  Re1+ {[%clk 0:00:03]} 37. Kh2 {[%clk 0:00:33]}  Rc1 {[%clk 0:00:03]} 38. Re6+ {[%clk 0:00:32]}  Kd7 {[%clk 0:00:04]} 39. Rd6+ {[%clk 0:00:32]}  Ke7 {[%clk 0:00:04]} 40. b4 {[%clk 0:00:32]}  Re5 {[%clk 0:00:04]} 41. Rd2 {[%clk 0:00:31]}  h5 {[%clk 0:00:02]} 42. R6xd5 {[%clk 0:00:30]}  Ree1 {[%clk 0:00:03]} 43. Rd7+ {[%clk 0:00:29]}  Ke6 {[%clk 0:00:03]} 44. R7d6+ {[%clk 0:00:29]}  Ke5 {[%clk 0:00:03]} 45. R6d5+ {[%clk 0:00:28]}  Ke4 {[%clk 0:00:04]} 46. Rxh5 {[%clk 0:00:28]}  Rh1+ {[%clk 0:00:03]} 47. Kg3 {[%clk 0:00:27]}  Rc3+ {[%clk 0:00:04]} 48. Kg4 {[%clk 0:00:27]}  Rc4 {[%clk 0:00:05]} 49. Kg5 {[%clk 0:00:18]}  Rf1 {[%clk 0:00:04]} 50. Re2+ {[%clk 0:00:17]}  Kd3 {[%clk 0:00:05]} 51. Ra2 {[%clk 0:00:17]}  Re4 {[%clk 0:00:05]} 52. g4 {[%clk 0:00:16]}  Re5+ {[%clk 0:00:05]} 53. Kh4 {[%clk 0:00:16]}  Re3 {[%clk 0:00:05]} 54. Rd5+ {[%clk 0:00:15]}  Kc4 {[%clk 0:00:05]} 55. Rh5 {[%clk 0:00:15]}  Rff3 {[%clk 0:00:06]} 56. Kg5 {[%clk 0:00:15]}  Kb3 {[%clk 0:00:05]} 57. Rh2 {[%clk 0:00:14]}  Kxa3 {[%clk 0:00:06]} 58. c6 {[%clk 0:00:14]}  Kxb4 {[%clk 0:00:06]} 59. Rc2 {[%clk 0:00:13]}  Rc3 {[%clk 0:00:07]} 60. Rxc3 {[%clk 0:00:12]}  Rxc3 {[%clk 0:00:08]} 61. Rh6 {[%clk 0:00:10]}  Rc5+ {[%clk 0:00:08]} 62. Kf4 {[%clk 0:00:10]}  a5 {[%clk 0:00:08]} 63. Rh5 {[%clk 0:00:09]}  Rc4+ {[%clk 0:00:07]} 64. Kf3 {[%clk 0:00:08]}  a4 {[%clk 0:00:08]} 65. Rh7 {[%clk 0:00:04]}  Rxc6 {[%clk 0:00:08]} 66. Rb7+ {[%clk 0:00:03]}  Ka3 {[%clk 0:00:08]} 67. g5 {[%clk 0:00:03]}  Rc3+ {[%clk 0:00:07]} 68. Kg4 {[%clk 0:00:03]}  Rb3 {[%clk 0:00:08]} 69. Ra7 {[%clk 0:00:03]}  Kb4 {[%clk 0:00:08]} 70. g6 {[%clk 0:00:03]}  a3 {[%clk 0:00:08]} 71. g7 {[%clk 0:00:03]}  Rb1 {[%clk 0:00:08]} 72. Rb7+ {[%clk 0:00:02]}  Kc3 {[%clk 0:00:07]} 73. Rxb1 {[%clk 0:00:03]} 1-0


[Site "https://www.chess.com"]

[Event "Titled Tuesday Blitz May 25 2021"]
[White "Milanovic, Vojislav"]
[Black "Barbero Sendic, Alejandro"]
[WhiteFideId "905046"]
[BlackFideId "3001288"]
[WhiteElo "2363"]
[BlackElo "2314"]
[Result "0-1"]
[Round "10"]
[TimeControl "180+1"]
[Date "2021.05.25"]
[WhiteClock "0:00:18"]
[BlackClock "0:00:12"]

1. e4 {[%clk 0:03:00]}  Na6 {[%clk 0:02:57]} 2. d4 {[%clk 0:03:00]}  Nh6 {[%clk 0:02:56]} 3. Nf3 {[%clk 0:02:57]}  e6 {[%clk 0:02:51]} 4. Nc3 {[%clk 0:02:57]}  d6 {[%clk 0:02:50]} 5. a3 {[%clk 0:02:55]}  Bd7 {[%clk 0:02:49]} 6. Bd3 {[%clk 0:02:55]}  Be7 {[%clk 0:02:50]} 7. O-O {[%clk 0:02:54]}  c6 {[%clk 0:02:47]} 8. Re1 {[%clk 0:02:51]}  Nc7 {[%clk 0:02:47]} 9. h3 {[%clk 0:02:46]}  d5 {[%clk 0:02:37]} 10. e5 {[%clk 0:02:38]}  Nf5 {[%clk 0:02:35]} 11. Ne2 {[%clk 0:02:31]}  O-O {[%clk 0:02:34]} 12. c3 {[%clk 0:02:26]}  c5 {[%clk 0:02:33]} 13. Ng3 {[%clk 0:02:25]}  Nxg3 {[%clk 0:02:31]} 14. fxg3 {[%clk 0:02:25]}  cxd4 {[%clk 0:02:29]} 15. cxd4 {[%clk 0:02:23]}  Rc8 {[%clk 0:02:28]} 16. Bb1 {[%clk 0:02:19]}  f6 {[%clk 0:02:06]} 17. exf6 {[%clk 0:02:17]}  Bxf6 {[%clk 0:02:07]} 18. Qd3 {[%clk 0:02:16]}  g6 {[%clk 0:02:07]} 19. Bf4 {[%clk 0:02:15]}  Na8 {[%clk 0:01:48]} 20. h4 {[%clk 0:02:10]}  Qb6 {[%clk 0:01:37]} 21. b4 {[%clk 0:01:17]}  Bb5 {[%clk 0:01:32]} 22. Qe3 {[%clk 0:01:14]}  Rce8 {[%clk 0:01:24]} 23. h5 {[%clk 0:01:11]}  gxh5 {[%clk 0:00:47]} 24. Ne5 {[%clk 0:01:01]}  Qc7 {[%clk 0:00:30]} 25. Bd3 {[%clk 0:00:42]}  Bxd3 {[%clk 0:00:30]} 26. Qxd3 {[%clk 0:00:40]}  Qg7 {[%clk 0:00:30]} 27. Qe3 {[%clk 0:00:34]}  Bxe5 {[%clk 0:00:22]} 28. Bxe5 {[%clk 0:00:33]}  Qg6 {[%clk 0:00:21]} 29. Rac1 {[%clk 0:00:28]}  Rc8 {[%clk 0:00:16]} 30. Rxc8 {[%clk 0:00:26]}  Rxc8 {[%clk 0:00:17]} 31. Rf1 {[%clk 0:00:26]}  Rf8 {[%clk 0:00:15]} 32. Rxf8+ {[%clk 0:00:25]}  Kxf8 {[%clk 0:00:16]} 33. Qc3 {[%clk 0:00:25]}  Nb6 {[%clk 0:00:15]} 34. Qc7 {[%clk 0:00:22]}  Qb1+ {[%clk 0:00:07]} 35. Kh2 {[%clk 0:00:22]}  h4 {[%clk 0:00:06]} 36. Qg7+ {[%clk 0:00:18]}  Ke8 {[%clk 0:00:06]} 37. Bf6 {[%clk 0:00:18]}  Nc8 {[%clk 0:00:05]} 38. Qc7 {[%clk 0:00:16]}  hxg3+ {[%clk 0:00:02]} 39. Qxg3 {[%clk 0:00:15]}  Qg6 {[%clk 0:00:02]} 40. Qh4 {[%clk 0:00:12]}  Kf7 {[%clk 0:00:02]} 41. Be5 {[%clk 0:00:12]}  Ne7 {[%clk 0:00:03]} 42. Qf2+ {[%clk 0:00:11]}  Nf5 {[%clk 0:00:03]} 43. Qc2 {[%clk 0:00:09]}  Qh5+ {[%clk 0:00:03]} 44. Kg1 {[%clk 0:00:09]}  Qg5 {[%clk 0:00:03]} 45. Qc7+ {[%clk 0:00:08]}  Qe7 {[%clk 0:00:04]} 46. Qxe7+ {[%clk 0:00:08]}  Kxe7 {[%clk 0:00:04]} 47. Kf2 {[%clk 0:00:09]}  Kd7 {[%clk 0:00:05]} 48. Kf3 {[%clk 0:00:10]}  Kc6 {[%clk 0:00:05]} 49. Kf4 {[%clk 0:00:10]}  Ne7 {[%clk 0:00:05]} 50. g4 {[%clk 0:00:11]}  Ng6+ {[%clk 0:00:05]} 51. Kg5 {[%clk 0:00:10]}  Nxe5 {[%clk 0:00:06]} 52. dxe5 {[%clk 0:00:10]}  d4 {[%clk 0:00:06]} 53. Kf4 {[%clk 0:00:10]}  Kd5 {[%clk 0:00:07]} 54. g5 {[%clk 0:00:11]}  Kc4 {[%clk 0:00:07]} 55. Ke4 {[%clk 0:00:11]}  d3 {[%clk 0:00:07]} 56. Ke3 {[%clk 0:00:11]}  Kc3 {[%clk 0:00:08]} 57. b5 {[%clk 0:00:12]}  d2 {[%clk 0:00:08]} 58. b6 {[%clk 0:00:13]}  d1=Q {[%clk 0:00:08]} 59. bxa7 {[%clk 0:00:12]}  Qa4 {[%clk 0:00:08]} 60. a8=Q {[%clk 0:00:12]}  Qxa8 {[%clk 0:00:08]} 61. Kf4 {[%clk 0:00:13]}  Qa7 {[%clk 0:00:09]} 62. g6 {[%clk 0:00:14]}  Qd4+ {[%clk 0:00:09]} 63. Kg5 {[%clk 0:00:15]}  hxg6 {[%clk 0:00:10]} 64. Kf6 {[%clk 0:00:15]}  Qf4+ {[%clk 0:00:10]} 65. Kxe6 {[%clk 0:00:16]}  g5 {[%clk 0:00:10]} 66. Kd6 {[%clk 0:00:16]}  g4 {[%clk 0:00:11]} 67. Kd5 {[%clk 0:00:17]}  g3 {[%clk 0:00:11]} 68. e6 {[%clk 0:00:18]}  g2 {[%clk 0:00:12]} 69. e7 {[%clk 0:00:19]}  g1=Q {[%clk 0:00:11]} 70. e8=Q {[%clk 0:00:20]}  Qgd4+ {[%clk 0:00:11]} 71. Ke6 {[%clk 0:00:19]}  Qfe5+ {[%clk 0:00:12]} 72. Kf7 {[%clk 0:00:19]}  Qdf4+ {[%clk 0:00:12]} 73. Kg8 {[%clk 0:00:19]}  Qeg5+ {[%clk 0:00:12]} 74. Kh7 {[%clk 0:00:17]}  Qfh4+ {[%clk 0:00:12]} 75. Qh5 {[%clk 0:00:18]}  Qhxh5# {[%clk 0:00:12]} 0-1


[Site "https://www.chess.com"]

[Event "Titled Tuesday Blitz May 25 2021"]
[White "Miszler, Levente"]
[Black "Sadovsky, Artem"]
[WhiteFideId "763276"]
[BlackFideId "4155840"]
[WhiteElo "1967"]
[BlackElo "2476"]
[Result "0-1"]
[Round "10"]
[TimeControl "180+1"]
[Date "2021.05.25"]
[WhiteClock "0:00:46"]
[BlackClock "0:01:03"]

1. Nf3 {[%clk 0:03:00]}  g6 {[%clk 0:02:59]} 2. c4 {[%clk 0:02:58]}  Bg7 {[%clk 0:02:59]} 3. g3 {[%clk 0:02:59]}  e5 {[%clk 0:02:59]} 4. Bg2 {[%clk 0:03:00]}  e4 {[%clk 0:02:59]} 5. Ng1 {[%clk 0:02:57]}  f5 {[%clk 0:02:59]} 6. d3 {[%clk 0:02:56]}  exd3 {[%clk 0:02:58]} 7. exd3 {[%clk 0:02:52]}  Nf6 {[%clk 0:02:58]} 8. Ne2 {[%clk 0:02:53]}  O-O {[%clk 0:02:58]} 9. O-O {[%clk 0:02:53]}  Nc6 {[%clk 0:02:45]} 10. d4 {[%clk 0:02:53]}  d5 {[%clk 0:02:42]} 11. c5 {[%clk 0:02:53]}  Qe8 {[%clk 0:02:31]} 12. Nf4 {[%clk 0:02:50]}  Ne7 {[%clk 0:02:28]} 13. Re1 {[%clk 0:02:47]}  Qf7 {[%clk 0:02:28]} 14. Nc3 {[%clk 0:02:41]}  c6 {[%clk 0:02:28]} 15. Nd3 {[%clk 0:02:24]}  Ne4 {[%clk 0:02:27]} 16. Be3 {[%clk 0:02:16]}  Re8 {[%clk 0:02:22]} 17. f3 {[%clk 0:02:11]}  Nf6 {[%clk 0:02:14]} 18. Ne5 {[%clk 0:02:10]}  Qf8 {[%clk 0:02:15]} 19. Qd2 {[%clk 0:02:03]}  Nd7 {[%clk 0:02:11]} 20. Bf4 {[%clk 0:01:57]}  Nxe5 {[%clk 0:01:50]} 21. Bxe5 {[%clk 0:01:58]}  Bd7 {[%clk 0:01:51]} 22. Re2 {[%clk 0:01:51]}  Bxe5 {[%clk 0:01:39]} 23. Rxe5 {[%clk 0:01:50]}  f4 {[%clk 0:01:40]} 24. Rae1 {[%clk 0:01:49]}  fxg3 {[%clk 0:01:32]} 25. hxg3 {[%clk 0:01:50]}  Nf5 {[%clk 0:01:30]} 26. g4 {[%clk 0:01:47]}  Nh4 {[%clk 0:01:28]} 27. Qf2 {[%clk 0:01:27]}  Rxe5 {[%clk 0:01:29]} 28. Rxe5 {[%clk 0:01:26]}  Qf4 {[%clk 0:01:29]} 29. Qxh4 {[%clk 0:01:22]}  Qxd4+ {[%clk 0:01:28]} 30. Kh1 {[%clk 0:01:16]}  Qxe5 {[%clk 0:01:28]} 31. Qf2 {[%clk 0:01:03]}  g5 {[%clk 0:01:28]} 32. Qd2 {[%clk 0:01:01]}  Re8 {[%clk 0:01:28]} 33. Qd3 {[%clk 0:00:56]}  h5 {[%clk 0:01:25]} 34. Qg6+ {[%clk 0:00:53]}  Qg7 {[%clk 0:01:13]} 35. Qxh5 {[%clk 0:00:51]}  Re1+ {[%clk 0:01:05]} 36. Kh2 {[%clk 0:00:50]}  Qe5+ {[%clk 0:01:05]} 37. Kh3 {[%clk 0:00:46]}  Kg7 {[%clk 0:01:03]} 0-1


[Site "https://www.chess.com"]

[Event "Titled Tuesday Blitz May 25 2021"]
[White "Mohammad Fahad, Rahman"]
[Black "Baches Garcia, Guillermo"]
[WhiteFideId "10207791"]
[BlackFideId "2209764"]
[WhiteElo "2323"]
[BlackElo "2408"]
[Result "1-0"]
[Round "10"]
[TimeControl "180+1"]
[Date "2021.05.25"]
[WhiteClock "0:00:03"]
[BlackClock "0:00:02"]

1. e4 {[%clk 0:03:00]}  c5 {[%clk 0:02:59]} 2. Nf3 {[%clk 0:03:00]}  d6 {[%clk 0:03:00]} 3. d4 {[%clk 0:02:59]}  cxd4 {[%clk 0:03:01]} 4. Qxd4 {[%clk 0:02:59]}  Nc6 {[%clk 0:02:59]} 5. Qe3 {[%clk 0:02:58]}  g6 {[%clk 0:02:58]} 6. Be2 {[%clk 0:02:56]}  Bg7 {[%clk 0:02:53]} 7. O-O {[%clk 0:02:53]}  Nf6 {[%clk 0:02:53]} 8. h3 {[%clk 0:02:53]}  O-O {[%clk 0:02:53]} 9. c4 {[%clk 0:02:53]}  Nd7 {[%clk 0:02:50]} 10. Nc3 {[%clk 0:02:51]}  Nc5 {[%clk 0:02:50]} 11. Rd1 {[%clk 0:02:46]}  a5 {[%clk 0:02:43]} 12. Rb1 {[%clk 0:02:27]}  a4 {[%clk 0:02:37]} 13. Nd5 {[%clk 0:02:24]}  Be6 {[%clk 0:02:25]} 14. b4 {[%clk 0:02:22]}  axb3 {[%clk 0:02:24]} 15. axb3 {[%clk 0:02:23]}  Bxd5 {[%clk 0:02:18]} 16. exd5 {[%clk 0:02:22]}  Nb4 {[%clk 0:02:14]} 17. Bd2 {[%clk 0:02:18]}  Nc2 {[%clk 0:01:56]} 18. Qg5 {[%clk 0:02:18]}  Ne4 {[%clk 0:01:41]} 19. Qh4 {[%clk 0:02:16]}  Nxd2 {[%clk 0:01:39]} 20. Rxd2 {[%clk 0:02:16]}  Ra1 {[%clk 0:01:28]} 21. Rbd1 {[%clk 0:01:56]}  Rxd1+ {[%clk 0:01:19]} 22. Bxd1 {[%clk 0:01:57]}  Nb4 {[%clk 0:01:14]} 23. Re2 {[%clk 0:01:48]}  Re8 {[%clk 0:01:09]} 24. Ng5 {[%clk 0:00:26]}  h6 {[%clk 0:01:02]} 25. Ne4 {[%clk 0:00:20]}  Nd3 {[%clk 0:00:56]} 26. Qg3 {[%clk 0:00:18]}  Nc5 {[%clk 0:00:52]} 27. Nxc5 {[%clk 0:00:17]}  dxc5 {[%clk 0:00:51]} 28. Bc2 {[%clk 0:00:18]}  Kf8 {[%clk 0:00:41]} 29. Qf4 {[%clk 0:00:14]}  Qd6 {[%clk 0:00:39]} 30. Qf3 {[%clk 0:00:12]}  Ra8 {[%clk 0:00:35]} 31. g3 {[%clk 0:00:12]}  Qf6 {[%clk 0:00:31]} 32. Qe3 {[%clk 0:00:09]}  Ra1+ {[%clk 0:00:27]} 33. Kg2 {[%clk 0:00:09]}  Qd6 {[%clk 0:00:26]} 34. Qf3 {[%clk 0:00:10]}  Qf6 {[%clk 0:00:25]} 35. Qg4 {[%clk 0:00:10]}  Kg8 {[%clk 0:00:20]} 36. Qd7 {[%clk 0:00:07]}  Kh7 {[%clk 0:00:17]} 37. Qxe7 {[%clk 0:00:06]}  Qg5 {[%clk 0:00:03]} 38. Qxg5 {[%clk 0:00:05]}  hxg5 {[%clk 0:00:03]} 39. d6 {[%clk 0:00:05]}  Ra8 {[%clk 0:00:01]} 40. Re7 {[%clk 0:00:03]}  Rd8 {[%clk 0:00:02]} 41. Rxf7 {[%clk 0:00:04]}  Rxd6 {[%clk 0:00:01]} 42. Rxb7 {[%clk 0:00:04]}  Rd2 {[%clk 0:00:02]} 43. Be4 {[%clk 0:00:05]}  Kh6 {[%clk 0:00:02]} 44. Rb6 {[%clk 0:00:04]}  Bd4 {[%clk 0:00:01]} 45. Rxg6+ {[%clk 0:00:04]}  Kh7 {[%clk 0:00:02]} 46. Rxg5+ {[%clk 0:00:03]} 1-0


[Site "https://www.chess.com"]